fUST/lending_fUST_20241107
["ID","MTS","AMOUNT","RATE_DAILY","PERIOD"]
[341518962,1730949043327,-500.0,0.00021917,2]
[341518963,1730949043336,-500.0,0.00021917,2]
[341518964,1730949043345,-506.08923992,0.00021917,2]
[341518965,1730949043354,-500.93336674,0.00021917,2]
[341518966,1730949043363,-500.0,0.00021917,2]
[341518967,1730949043373,-511.44941686,0.00021917,2]
[341518968,1730949043382,-555.35026017,0.00021917,2]
[341518969,1730949043391,-500.0,0.00021917,2]
[341518970,1730949043401,-517.5717839,0.00021917,2]
[341518971,1730949043410,-500.0,0.00021917,2]
[341518972,1730949043419,-500.0,0.00021917,2]
[341518973,1730949043428,-494.30837843,0.00021917,2]
[341518974,1730949043437,-500.0,0.00021917,2]
[341518975,1730949043446,-535.57645506,0.00021917,2]
[341518976,1730949043455,-505.58886083,0.00021917,2]
[341518977,1730949043464,-646.77074614,0.00021917,2]
[341518978,1730949043473,-519.57608669,0.00021917,2]
[341518979,1730949043481,-508.33490532,0.00021917,2]
[341518980,1730949043492,-500.0,0.00021917,2]
[341518981,1730949043501,-503.26182047,0.00021917,2]
[341518982,1730949043511,-515.71655903,0.00021917,2]
[341518983,1730949043520,-500.0,0.00021917,2]
[341518984,1730949043529,-500.0,0.00021917,2]
[341518985,1730949043539,-191.75452985,0.00021917,2]
[341518986,1730949043550,-508.4544335,0.00021917,2]
[341518987,1730949043559,-500.0,0.00021917,2]
[341518988,1730949043568,-520.22473363,0.00021917,2]
[341518989,1730949043578,-426.34910097,0.00021917,2]
[341518990,1730949043587,-500.0,0.00021917,2]
[341518992,1730949043597,-607.38654112,0.00021917,2]
[341518993,1730949043606,-500.0,0.00021917,2]
[341518994,1730949043615,-504.59166397,0.00021917,2]
[341518995,1730949043624,-500.0,0.00021917,2]
[341518996,1730949043636,-502.45818793,0.00021917,2]
[341518997,1730949043645,-500.0,0.00021917,2]
[341518998,1730949043654,-502.08408836,0.00021917,2]
[341518999,1730949043663,-500.0,0.00021917,2]
[341519000,1730949043673,-250.0,0.00021917,2]
[341519001,1730949043682,-316.94262602,0.00021917,2]
[341519002,1730949043692,-500.0,0.00021917,2]
[341519003,1730949043701,-507.91152692,0.00021917,2]
[341519004,1730949043713,-500.0,0.00021917,2]
[341519005,1730949043722,-500.0,0.00021917,2]
[341519006,1730949043731,-500.0,0.00021917,2]
[341519007,1730949043740,-230.39125962,0.00021917,2]
[341519008,1730949043749,-500.0,0.00021917,2]
[341519009,1730949043758,-502.23960858,0.00021917,2]
[341519010,1730949043767,-500.0,0.00021917,2]
[341519011,1730949043777,-500.0,0.00021917,2]
[341519012,1730949043787,-500.0,0.00021917,2]
[341519013,1730949043797,-500.0,0.00021917,2]
[341519014,1730949043805,-500.0,0.00021917,2]
[341519015,1730949043816,-500.0,0.00021917,2]
[341519016,1730949043825,-500.0,0.00021917,2]
[341519017,1730949043834,-500.0,0.00021917,2]
[341519018,1730949043844,-595.3686621,0.00021917,2]
[341519019,1730949043853,-500.0,0.00021917,2]
[341519020,1730949043862,-372.41185529,0.00021917,2]
[341519021,1730949043871,-500.0,0.00021917,2]
[341519022,1730949043880,-502.91711241,0.00021917,2]
[341519023,1730949043890,-513.29696048,0.00021917,2]
[341519024,1730949043900,-500.0,0.00021917,2]
[341519025,1730949043910,-500.0,0.00021917,2]
[341519026,1730949043920,-328.00063743,0.00021917,2]
[341519027,1730949043929,-500.0,0.00021917,2]
[341519028,1730949043939,-500.0,0.00021917,2]
[341519029,1730949043948,-500.0,0.00021917,2]
[341519030,1730949043957,-427.70125102,0.00021917,2]
[341519031,1730949043966,-505.45444374,0.00021917,2]
[341519032,1730949043976,-500.0,0.00021917,2]
[341519033,1730949043986,-500.0,0.00021917,2]
[341519034,1730949043996,-500.0,0.00021917,2]
[341519035,1730949044007,-500.0,0.00021917,2]
[341519036,1730949044016,-500.0,0.00021917,2]
[341519037,1730949044026,-519.4744867,0.00021917,2]
[341519038,1730949044035,-505.60667388,0.00021917,2]
[341519039,1730949044043,-500.0,0.00021917,2]
[341519040,1730949044054,-500.0,0.00021917,2]
[341519041,1730949044063,-503.27561764,0.00021917,2]
[341519042,1730949044072,-111.74965868,0.00021917,2]
[341519059,1730949046291,-437.78990554,0.00021916,2]
[341519060,1730949046303,-500.0,0.00021916,2]
[341519061,1730949046315,-500.0,0.00021916,2]
[341519062,1730949046325,-155.36947862,0.00021916,2]
[341519063,1730949046335,-274.61653964,0.00021916,2]
[341519064,1730949046344,-500.0,0.00021916,2]
[341519065,1730949046354,-423.51064605,0.00021917,2]
[341519066,1730949046363,-512.70984233,0.00021917,2]
[341519067,1730949046373,-511.07968725,0.00021917,2]
[341519068,1730949046382,-500.0,0.00021917,2]
[341519069,1730949046392,-500.0,0.00021917,2]
[341519071,1730949046401,-580.07896475,0.00021917,2]
[341519073,1730949046411,-504.28550309,0.00021917,2]
[341519074,1730949046421,-500.0,0.00021917,2]
[341519076,1730949046433,-500.0,0.00021917,2]
[341519078,1730949046443,-500.0,0.00021917,2]
[341519080,1730949046452,-500.0,0.00021917,2]
[341519082,1730949046461,-500.0,0.00021917,2]
[341519084,1730949046471,-409.73680782,0.00021917,2]
[341519086,1730949046481,-500.0,0.00021917,2]
[341519088,1730949046492,-517.92282039,0.00021917,2]
[341519090,1730949046502,-500.0,0.00021917,2]
[341519093,1730949046512,-500.0,0.00021917,2]
[341519095,1730949046522,-500.0,0.00021917,2]
[341519097,1730949046532,-530.17996135,0.00021917,2]
[341519098,1730949046541,-500.0,0.00021917,2]
[341519100,1730949046552,-544.56349418,0.00021917,2]
[341519102,1730949046562,-391.88806214,0.00021917,2]
[341519293,1730949048375,500.0,0.00032431,120]
[341519825,1730949063720,500.0,0.00032431,120]
[341519826,1730949076840,162.965659,0.00013973,2]
[341519828,1730949081572,500.0,0.00032431,120]
[341519830,1730949096691,500.0,0.00032431,120]
[341519831,1730949117362,500.0,0.00032431,120]
[341519833,1730949133445,500.0,0.00032431,120]
[341519836,1730949150821,500.0,0.00032431,120]
[341519837,1730949166961,500.0,0.00032431,120]
[341519839,1730949187914,500.0,0.00032431,120]
[341519840,1730949204977,500.0,0.00032431,120]
[341519850,1730949225574,500.0,0.00032431,120]
[341519883,1730949242205,500.0,0.00032431,120]
[341519885,1730949258237,500.0,0.00032431,120]
[341519891,1730949275156,500.0,0.00032431,120]
[341519893,1730949292081,500.0,0.00032421,120]
[341519895,1730949307697,500.0,0.00032421,120]
[341519897,1730949324768,500.0,0.00032421,120]
[341519898,1730949340003,500.0,0.00032421,120]
[341519899,1730949356182,500.0,0.00032421,120]
[341519904,1730949388713,470.00000068,0.00032421,120]
[341519910,1730949489497,213.05451911,0.00020771,2]
[341519911,1730949515965,1169.27083333,0.0002084,2]
[341519933,1730949847992,349.30219785,0.00032424,30]
[341519966,1730950103283,24900.0,0.00020739,2]
[341519975,1730950121721,337.77674652,0.0001,7]
[341519977,1730950123702,162.714775,0.00013973,2]
[341519978,1730950127569,1169.27083333,0.0002084,2]
[341520038,1730950232375,-258.0,0.00021816,2]
[341520039,1730950232384,-242.59555,0.00021817,2]
[341520079,1730950238501,-336.49999996,0.00021817,2]
[341520082,1730950238641,-10800.15975486,0.00021817,2]
[341520083,1730950238651,-2428.84195475,0.00021817,2]
[341520084,1730950238660,-424.74,0.00021907,3]
[341520085,1730950238671,-250.0,0.00021916,2]
[341520086,1730950238680,-783.14516759,0.00021916,2]
[341520087,1730950238690,-177.43824902,0.00021917,2]
[341520088,1730950238699,-383.15253863,0.00021917,2]
[341520089,1730950238708,-500.0,0.00021917,2]
[341520090,1730950238718,-500.0,0.00021917,2]
[341520091,1730950238727,-500.0,0.00021917,2]
[341520092,1730950238736,-500.0,0.00021917,2]
[341520093,1730950238746,-500.0,0.00021917,2]
[341520094,1730950238755,-521.40981191,0.00021917,2]
[341520095,1730950238765,-519.55848746,0.00021917,2]
[341520096,1730950238776,-500.0,0.00021917,2]
[341520097,1730950238786,-500.0,0.00021917,2]
[341520098,1730950238797,-481.8833164,0.00021917,2]
[341520099,1730950238812,-506.85812981,0.00021917,2]
[341520102,1730950238828,-500.0,0.00021917,2]
[341520103,1730950238841,-500.0,0.00021917,2]
[341520104,1730950238852,-465.57875636,0.00021917,2]
[341520105,1730950238863,-500.0,0.00021917,2]
[341520106,1730950238874,-503.82138784,0.00021917,2]
[341520107,1730950238887,-500.0,0.00021917,2]
[341520108,1730950238899,-500.0,0.00021917,2]
[341520109,1730950238912,-500.0,0.00021917,2]
[341520110,1730950238924,-500.0,0.00021917,2]
[341520111,1730950238936,-500.00000002,0.00021917,2]
[341520112,1730950238948,-272.8252956,0.00021917,2]
[341520113,1730950238961,-500.0,0.00021917,2]
[341520114,1730950238974,-500.0,0.00021917,2]
[341520115,1730950238986,-500.0,0.00021917,2]
[341520116,1730950238997,-504.9293382,0.00021917,2]
[341520117,1730950239009,-503.74207656,0.00021917,2]
[341520118,1730950239022,-500.0,0.00021917,2]
[341520119,1730950239033,-491.93967647,0.00021917,2]
[341520120,1730950239043,-500.0,0.00021917,2]
[341520121,1730950239054,-502.93307511,0.00021917,2]
[341520122,1730950239067,-507.90719727,0.00021917,2]
[341520123,1730950239078,-503.97305917,0.00021917,2]
[341520124,1730950239092,-500.0,0.00021917,2]
[341520125,1730950239103,-642.93028203,0.00021917,2]
[341520126,1730950239114,-301.23018136,0.00021917,2]
[341520127,1730950239126,-500.0,0.00021917,2]
[341520128,1730950239138,-500.0,0.00021917,2]
[341520129,1730950239150,-500.0,0.00021917,2]
[341520130,1730950239161,-500.0,0.00021917,2]
[341520131,1730950239173,-500.0,0.00021917,2]
[341520132,1730950239187,-500.0,0.00021917,2]
[341520133,1730950239197,-500.0,0.00021917,2]
[341520134,1730950239208,-500.0,0.00021917,2]
[341520135,1730950239219,-510.30489863,0.00021917,2]
[341520136,1730950239233,-504.69648966,0.00021917,2]
[341520137,1730950239245,-509.72652579,0.00021917,2]
[341520138,1730950239256,-500.0,0.00021917,2]
[341520139,1730950239267,-500.0,0.00021917,2]
[341520140,1730950239279,-500.0,0.00021917,2]
[341520141,1730950239291,-500.0,0.00021917,2]
[341520142,1730950239305,-500.0,0.00021917,2]
[341520143,1730950239317,-508.50222147,0.00021917,2]
[341520144,1730950239330,-501.68667199,0.00021917,2]
[341520145,1730950239342,-500.0,0.00021917,2]
[341520146,1730950239353,-500.0,0.00021917,2]
[341520147,1730950239367,-500.0,0.00021917,2]
[341520148,1730950239380,-500.0,0.00021917,2]
[341520149,1730950239391,-507.17892624,0.00021917,2]
[341520150,1730950239402,-500.0,0.00021917,2]
[341520151,1730950239413,-500.0,0.00021917,2]
[341520152,1730950239423,-500.0,0.00021917,2]
[341520153,1730950239433,-508.7948343,0.00021917,2]
[341520154,1730950239445,-487.40610888,0.00021917,2]
[341520155,1730950239455,-500.0,0.00021917,2]
[341520156,1730950239466,-500.0,0.00021917,2]
[341520157,1730950239479,-500.0,0.00021917,2]
[341520158,1730950239490,-500.0,0.00021917,2]
[341520159,1730950239500,-500.0,0.00021917,2]
[341520160,1730950239511,-500.0,0.00021917,2]
[341520161,1730950239521,-500.0,0.00021917,2]
[341520162,1730950239532,-500.0,0.00021917,2]
[341520163,1730950239543,-500.0,0.00021917,2]
[341520164,1730950239555,-500.0,0.00021917,2]
[341520165,1730950239568,-500.0,0.00021917,2]
[341520166,1730950239580,-500.0,0.00021917,2]
[341520167,1730950239590,-507.20937103,0.00021917,2]
[341520168,1730950239600,-500.0,0.00021917,2]
[341520169,1730950239611,-500.0,0.00021917,2]
[341520170,1730950239621,-500.0,0.00021917,2]
[341520171,1730950239631,-500.0,0.00021917,2]
[341520172,1730950239642,-500.0,0.00021917,2]
[341520173,1730950239653,-500.0,0.00021917,2]
[341520174,1730950239666,-500.0,0.00021917,2]
[341520175,1730950239679,-500.0,0.00021917,2]
[341520176,1730950239691,-500.0,0.00021917,2]
[341520177,1730950239703,-524.47840695,0.00021917,2]
[341520178,1730950239714,-500.0,0.00021917,2]
[341520179,1730950239726,-134.86850874,0.00021917,2]
[341520187,1730950240272,-365.13149126,0.00021917,2]
[341520188,1730950240284,-500.0,0.00021917,2]
[341520189,1730950240295,-1877.62,0.00021917,2]
[341520190,1730950240305,-1877.62,0.00021917,2]
[341520191,1730950240317,-1877.62,0.00021917,2]
[341520192,1730950240330,-302.00850874,0.00021917,2]
[341520262,1730950552143,-2316.29276725,0.00021817,2]
[341520263,1730950552169,-300.0,0.00021916,2]
[341520264,1730950552194,-500.0,0.00021917,2]
[341520265,1730950552219,-595.3686621,0.00021917,2]
[341520266,1730950552244,-500.0,0.00021917,2]
[341520267,1730950552270,-280.49436824,0.00021917,2]
[341520268,1730950552295,-500.0,0.00021917,2]
[341520269,1730950552318,-500.0,0.00021917,2]
[341520270,1730950552346,-500.0,0.00021917,2]
[341520271,1730950552371,-509.82009858,0.00021917,2]
[341520272,1730950552395,-500.0,0.00021917,2]
[341520273,1730950552418,-211.93746389,0.00021917,2]
[341520274,1730950552442,-500.0,0.00021917,2]
[341520275,1730950552578,-513.61083248,0.00021917,2]
[341520276,1730950552603,-510.29128254,0.00021917,2]
[341520277,1730950552628,-406.89672757,0.00021917,2]
[341520278,1730950552652,-500.0,0.00021917,2]
[341520279,1730950552676,-500.0,0.00021917,2]
[341520280,1730950552701,-500.0,0.00021917,2]
[341520281,1730950552726,-500.0,0.00021917,2]
[341520282,1730950552751,-515.13987861,0.00021917,2]
[341520283,1730950552776,-500.0,0.00021917,2]
[341520284,1730950552801,-1000.0,0.00021917,5]
[341520285,1730950552827,-500.0,0.00021917,2]
[341520286,1730950552851,-500.0,0.00021917,2]
[341520287,1730950552876,-500.0,0.00021917,2]
[341520288,1730950552900,-500.0,0.00021917,2]
[341520289,1730950552924,-521.33421006,0.00021917,2]
[341520290,1730950552948,-500.0,0.00021917,2]
[341520291,1730950552972,-510.46927411,0.00021917,2]
[341520292,1730950553005,-502.53827828,0.00021917,2]
[341520293,1730950553039,-500.0,0.00021917,2]
[341520294,1730950553064,-500.0,0.00021917,2]
[341520295,1730950553090,-500.0,0.00021917,2]
[341520296,1730950553115,-500.0,0.00021917,2]
[341520297,1730950553145,-500.0,0.00021917,2]
[341520298,1730950553174,-511.65362453,0.00021917,2]
[341520299,1730950553202,-500.0,0.00021917,2]
[341520300,1730950553229,-500.0,0.00021917,2]
[341520301,1730950553255,-503.30271603,0.00021917,2]
[341520302,1730950553283,-500.0,0.00021917,2]
[341520303,1730950553307,-500.0,0.00021917,2]
[341520304,1730950553331,-500.0,0.00021917,2]
[341520305,1730950553355,-638.36251477,0.00021917,2]
[341520306,1730950553381,-502.33625795,0.00021917,2]
[341520307,1730950553406,-500.0,0.00021917,2]
[341520308,1730950553431,-500.0,0.00021917,2]
[341520309,1730950553456,-500.0,0.00021917,2]
[341520310,1730950553481,-500.0,0.00021917,2]
[341520311,1730950553506,-500.0,0.00021917,2]
[341520312,1730950553531,-383.55552242,0.00021917,2]
[341520313,1730950553555,-500.0,0.00021917,2]
[341520314,1730950553580,-500.0,0.00021917,2]
[341520315,1730950553603,-500.0,0.00021917,2]
[341520316,1730950553627,-500.0,0.00021917,2]
[341520317,1730950553651,-500.0,0.00021917,2]
[341520318,1730950553674,-500.0,0.00021917,2]
[341520319,1730950553699,-500.0,0.00021917,2]
[341520320,1730950553723,-530.17405868,0.00021917,2]
[341520321,1730950553752,-500.0,0.00021917,2]
[341520322,1730950553777,-502.85949901,0.00021917,2]
[341520323,1730950553801,-500.0,0.00021917,2]
[341520324,1730950553825,-508.10528648,0.00021917,2]
[341520325,1730950553849,-514.35266705,0.00021917,2]
[341520326,1730950553873,-501.89028417,0.00021917,2]
[341520327,1730950553901,-500.0,0.00021917,2]
[341520328,1730950553925,-500.0,0.00021917,2]
[341520329,1730950553950,-500.40097656,0.00021917,2]
[341520330,1730950553974,-500.0,0.00021917,2]
[341520331,1730950553999,-500.0,0.00021917,2]
[341520332,1730950554025,-433.85330946,0.00021917,2]
[341520333,1730950554049,-500.0,0.00021917,2]
[341520334,1730950554074,-500.0,0.00021917,2]
[341520335,1730950554100,-503.23069248,0.00021917,2]
[341520336,1730950554126,-500.0,0.00021917,2]
[341520337,1730950554151,-500.0,0.00021917,3]
[341520338,1730950554180,-563.16845628,0.00021917,2]
[341520339,1730950554208,-500.0,0.00021917,2]
[341520340,1730950554236,-500.0,0.00021917,2]
[341520341,1730950554263,-502.29469915,0.00021917,2]
[341520342,1730950554287,-500.0,0.00021917,2]
[341520343,1730950554312,-500.0,0.00021917,2]
[341520344,1730950554336,-500.0,0.00021917,2]
[341520345,1730950554360,-501.05170591,0.00021917,2]
[341520346,1730950554385,-504.60403489,0.00021917,2]
[341520347,1730950554507,-510.99363758,0.00021917,2]
[341520348,1730950554534,-534.37475391,0.00021917,2]
[341520349,1730950554558,-512.01777987,0.00021917,2]
[341520350,1730950554583,-500.0,0.00021917,2]
[341520351,1730950554607,-500.0,0.00021917,2]
[341520352,1730950554630,-529.62448052,0.00021917,2]
[341520353,1730950554655,-500.0,0.00021917,2]
[341520354,1730950554679,-501.28162959,0.00021917,2]
[341520355,1730950554703,-500.0,0.00021917,2]
[341520356,1730950554727,-500.0,0.00021917,2]
[341520357,1730950554751,-501.28742894,0.00021917,2]
[341520358,1730950554779,-500.0,0.00021917,2]
[341520359,1730950554803,-1000.0,0.00021917,2]
[341520360,1730950554827,-500.0,0.00021917,2]
[341520361,1730950554851,-511.09468164,0.00021917,2]
[341520362,1730950554875,-500.0,0.00021917,2]
[341520363,1730950554898,-500.0,0.00021917,2]
[341520364,1730950554922,-500.0,0.00021917,2]
[341520365,1730950554946,-500.0,0.00021917,2]
[341520366,1730950554969,-500.0,0.00021917,2]
[341520367,1730950554994,-500.0,0.00021917,2]
[341520368,1730950555020,-500.0,0.00021917,2]
[341520369,1730950555045,-500.0,0.00021917,2]
[341520370,1730950555069,-500.0,0.00021917,2]
[341520371,1730950555092,-500.0,0.00021917,2]
[341520372,1730950555117,-506.08923992,0.00021917,2]
[341520373,1730950555145,-500.0,0.00021917,2]
[341520374,1730950555169,-500.0,0.00021917,2]
[341520375,1730950555193,-500.0,0.00021917,2]
[341520376,1730950555220,-500.0,0.00021917,2]
[341520377,1730950555245,-500.0,0.00021917,2]
[341520378,1730950555276,-555.35026017,0.00021917,2]
[341520379,1730950555300,-646.77074614,0.00021917,2]
[341520380,1730950555324,-511.44941686,0.00021917,2]
[341520381,1730950555349,-500.0,0.00021917,2]
[341520382,1730950555374,-500.0,0.00021917,2]
[341520383,1730950555398,-500.0,0.00021917,2]
[341520384,1730950555424,-500.0,0.00021917,2]
[341520385,1730950555449,-500.0,0.00021917,2]
[341520386,1730950555474,-500.0,0.00021917,2]
[341520387,1730950555500,-500.0,0.00021917,2]
[341520388,1730950555529,-500.0,0.00021917,2]
[341520389,1730950555553,-500.0,0.00021917,2]
[341520390,1730950555577,-500.0,0.00021917,2]
[341520391,1730950555601,-500.0,0.00021917,2]
[341520392,1730950555625,-535.57645506,0.00021917,2]
[341520393,1730950555650,-505.52892122,0.00021917,2]
[341520394,1730950555675,-500.0,0.00021917,2]
[341520395,1730950555699,-505.58886083,0.00021917,2]
[341520396,1730950555723,-500.0,0.00021917,2]
[341520397,1730950555746,-508.33490532,0.00021917,2]
[341520398,1730950555779,-500.0,0.00021917,2]
[341520399,1730950555803,-508.59828186,0.00021917,2]
[341520400,1730950555827,-520.22473363,0.00021917,2]
[341520401,1730950555851,-500.0,0.00021917,2]
[341520402,1730950555876,-515.71655903,0.00021917,2]
[341520403,1730950555900,-500.0,0.00021917,2]
[341520404,1730950555925,-500.0,0.00021917,2]
[341520405,1730950555950,-500.0,0.00021917,2]
[341520406,1730950555975,-500.0,0.00021917,2]
[341520407,1730950556000,-508.4544335,0.00021917,2]
[341520408,1730950556028,-571.45185926,0.00021917,2]
[341520409,1730950556053,-500.0,0.00021917,2]
[341520410,1730950556080,-500.0,0.00021917,2]
[341520411,1730950556104,-500.0,0.00021917,2]
[341520412,1730950556134,-191.75452985,0.00021917,2]
[341520413,1730950556160,-500.0,0.00021917,2]
[341520414,1730950556184,-500.0,0.00021917,2]
[341520415,1730950556209,-509.28105975,0.00021917,2]
[341520416,1730950556234,-500.0,0.00021917,2]
[341520417,1730950556258,-554.1600042,0.00021917,2]
[341520418,1730950556287,-500.0,0.00021917,2]
[341520419,1730950556312,-502.08408836,0.00021917,2]
[341520420,1730950556337,-500.0,0.00021917,2]
[341520421,1730950556362,-250.2446022,0.00021917,2]
[341520422,1730950556386,-426.34910097,0.00021917,2]
[341520423,1730950556411,-500.0,0.00021917,2]
[341520424,1730950556436,-500.0,0.00021917,2]
[341520425,1730950556461,-502.45818793,0.00021917,2]
[341520426,1730950556486,-500.0,0.00021917,2]
[341520427,1730950556513,-500.0,0.00021917,2]
[341520428,1730950556538,-340.61858136,0.00021917,2]
[341520429,1730950556562,-500.0,0.00021917,2]
[341520430,1730950556587,-503.46864879,0.00021917,2]
[341520431,1730950556705,-626.93538423,0.00021917,2]
[341520432,1730950556735,-502.70360351,0.00021917,2]
[341520433,1730950556760,-505.53286965,0.00021917,2]
[341520434,1730950556784,-500.0,0.00021917,2]
[341520435,1730950556808,-500.0,0.00021917,2]
[341520436,1730950556832,-500.0,0.00021917,2]
[341520437,1730950556856,-505.56096771,0.00021917,2]
[341520438,1730950556881,-500.0,0.00021917,2]
[341520439,1730950556905,-500.0,0.00021917,2]
[341520440,1730950556929,-500.0,0.00021917,2]
[341520441,1730950556954,-500.0,0.00021917,2]
[341520442,1730950556979,-316.94262602,0.00021917,2]
[341520443,1730950557005,-500.0,0.00021917,2]
[341520444,1730950557032,-500.0,0.00021917,2]
[341520445,1730950557059,-507.91152692,0.00021917,2]
[341520446,1730950557084,-508.40318906,0.00021917,2]
[341520447,1730950557112,-500.0,0.00021917,2]
[341520448,1730950557138,-500.0,0.00021917,2]
[341520449,1730950557163,-254.05488513,0.00021917,2]
[341520450,1730950557187,-500.0,0.00021917,2]
[341520451,1730950557213,-500.0,0.00021917,2]
[341520452,1730950557238,-500.0,0.00021917,2]
[341520453,1730950557268,-525.67072245,0.00021917,2]
[341520454,1730950557293,-500.0,0.00021917,2]
[341520455,1730950557319,-500.0,0.00021917,2]
[341520456,1730950557344,-500.0,0.00021917,2]
[341520457,1730950557369,-500.0,0.00021917,2]
[341520458,1730950557394,-500.0,0.00021917,2]
[341520459,1730950557422,-500.0,0.00021917,2]
[341520460,1730950557450,-500.0,0.00021917,2]
[341520461,1730950557477,-500.0,0.00021917,2]
[341520462,1730950557500,-500.0,0.00021917,2]
[341520463,1730950557526,-500.0,0.00021917,2]
[341520464,1730950557551,-500.0,0.00021917,2]
[341520465,1730950557576,-500.0,0.00021917,2]
[341520466,1730950557601,-502.23960858,0.00021917,2]
[341520467,1730950557626,-500.0,0.00021917,2]
[341520468,1730950557669,-372.41185529,0.00021917,2]
[341520469,1730950557697,-500.0,0.00021917,2]
[341520470,1730950557724,-500.0,0.00021917,2]
[341520471,1730950557751,-500.0,0.00021917,2]
[341520472,1730950557794,-500.0,0.00021917,2]
[341520473,1730950557838,-513.29696048,0.00021917,2]
[341520474,1730950557874,-500.0,0.00021917,2]
[341520475,1730950557911,-500.61405053,0.00021917,2]
[341520476,1730950557947,-500.0,0.00021917,2]
[341520477,1730950557984,-230.39125962,0.00021917,2]
[341520478,1730950558023,-500.0,0.00021917,2]
[341520479,1730950558056,-500.0,0.00021917,2]
[341520480,1730950558091,-328.00063743,0.00021917,2]
[341520481,1730950558125,-500.0,0.00021917,2]
[341520482,1730950558159,-500.0,0.00021917,2]
[341520483,1730950558188,-500.0,0.00021917,2]
[341520484,1730950558222,-502.91711241,0.00021917,2]
[341520485,1730950558256,-427.70125102,0.00021917,2]
[341520486,1730950558290,-505.45444374,0.00021917,2]
[341520487,1730950558329,-640.02522039,0.00021917,2]
[341520488,1730950558363,-500.0,0.00021917,2]
[341520489,1730950558393,-500.0,0.00021917,2]
[341520490,1730950558425,-500.0,0.00021917,2]
[341520491,1730950558458,-500.0,0.00021917,2]
[341520492,1730950558490,-500.0,0.00021917,2]
[341520493,1730950558528,-519.4744867,0.00021917,2]
[341520494,1730950558557,-500.0,0.00021917,2]
[341520495,1730950558587,-500.0,0.00021917,2]
[341520496,1730950558621,-500.42751372,0.00021917,2]
[341520497,1730950558656,-500.0,0.00021917,2]
[341520498,1730950558688,-500.0,0.00021917,2]
[341520499,1730950558719,-500.0,0.00021917,2]
[341520500,1730950558751,-500.0,0.00021917,2]
[341520501,1730950558782,-503.27561764,0.00021917,2]
[341520502,1730950558819,-500.0,0.00021917,2]
[341520503,1730950558849,-500.0,0.00021917,2]
[341520504,1730950558879,-500.0,0.00021917,2]
[341520505,1730950558909,-500.0,0.00021917,2]
[341520506,1730950558940,-611.74965868,0.00021917,2]
[341520507,1730950558970,-506.67057911,0.00021917,2]
[341520508,1730950559001,-500.0,0.00021917,2]
[341520509,1730950559030,-500.0,0.00021917,2]
[341520510,1730950559060,-500.0,0.00021917,2]
[341520511,1730950559090,-500.0,0.00021917,2]
[341520512,1730950559258,-500.0,0.00021917,2]
[341520513,1730950559297,-229.07378136,0.00021917,2]
[341520514,1730950559323,-500.0,0.00021917,2]
[341520515,1730950559348,-500.0,0.00021917,2]
[341520516,1730950559371,-512.44282266,0.00021917,2]
[341520517,1730950559396,-500.0,0.00021917,2]
[341520518,1730950559420,-507.92928778,0.00021917,2]
[341520519,1730950559445,-500.0,0.00021917,2]
[341520520,1730950559469,-503.08744073,0.00021917,2]